[Event "Late-Titled-Tuesday-Blitz-May-07-2024"]
[Site "Chess.com"]
[Date "2024.05.07"]
[Round "4"]
[White "Harsha_Bharathakoti"]
[Black "Nf3c5"]
[Result "1-0"]
[WhiteElo "2948"]
[BlackElo "2619"]
[TimeControl "180+1"]
[EndTime "14:37:39 PDT"]
[Termination "Harsha_Bharathakoti won on time"]

1. d4 {[%clk 0:03:00.9]} 1... e6 {[%clk 0:02:56.6]} 2. c4 {[%clk 0:03:00.8]}
2... f5 {[%clk 0:02:56.9]} 3. Nc3 {[%clk 0:02:59.3]} 3... Nf6 {[%clk 0:02:55]}
4. Bf4 {[%clk 0:02:59.7]} 4... Bb4 {[%clk 0:02:54.9]} 5. Qb3 {[%clk 0:02:56.5]}
5... c5 {[%clk 0:02:51]} 6. dxc5 {[%clk 0:02:55.7]} 6... Na6 {[%clk 0:02:46.8]}
7. a3 {[%clk 0:02:50.6]} 7... Bxc5 {[%clk 0:01:13]} 8. Nf3 {[%clk 0:02:42.7]}
8... O-O {[%clk 0:01:04.7]} 9. e3 {[%clk 0:02:42.8]} 9... b6 {[%clk 0:01:02.6]}
10. Be2 {[%clk 0:02:40.7]} 10... Bb7 {[%clk 0:01:03.1]} 11. Rd1 {[%clk
0:02:39.9]} 11... Be7 {[%clk 0:01:03.8]} 12. O-O {[%clk 0:02:27.5]} 12... Nc5
{[%clk 0:01:02.9]} 13. Qa2 {[%clk 0:02:23]} 13... Nfe4 {[%clk 0:01:02.3]} 14.
Nxe4 {[%clk 0:02:17.2]} 14... Nxe4 {[%clk 0:00:59.6]} 15. h3 {[%clk 0:02:08.4]}
15... Rc8 {[%clk 0:00:59.3]} 16. Ne5 {[%clk 0:02:00.5]} 16... d6 {[%clk
0:00:56.3]} 17. c5 {[%clk 0:01:59.7]} 17... d5 {[%clk 0:00:47.2]} 18. cxb6
{[%clk 0:01:59.6]} 18... axb6 {[%clk 0:00:45.7]} 19. Rc1 {[%clk 0:01:59.9]}
19... Bd6 {[%clk 0:00:38.7]} 20. Bb5 {[%clk 0:01:47.1]} 20... Rc7 {[%clk
0:00:35.3]} 21. Nd3 {[%clk 0:01:38.5]} 21... g5 {[%clk 0:00:25.9]} 22. Bxd6
{[%clk 0:01:37.9]} 22... Qxd6 {[%clk 0:00:26.6]} 23. Rxc7 {[%clk 0:01:38.4]}
23... Qxc7 {[%clk 0:00:27.2]} 24. Rc1 {[%clk 0:01:39]} 24... Qd6 {[%clk
0:00:27.7]} 25. Qb3 {[%clk 0:01:39.7]} 25... f4 {[%clk 0:00:25.8]} 26. Qb4
{[%clk 0:01:36.1]} 26... Qxb4 {[%clk 0:00:15.4]} 27. Nxb4 {[%clk 0:01:37]} 27...
fxe3 {[%clk 0:00:13.7]} 28. fxe3 {[%clk 0:01:37.9]} 28... Rc8 {[%clk 0:00:12.2]}
29. Rf1 {[%clk 0:01:25.6]} 29... Kg7 {[%clk 0:00:10.4]} 30. Bd7 {[%clk 0:01:24]}
30... Rd8 {[%clk 0:00:05.4]} 31. Bxe6 {[%clk 0:01:24.4]} 31... Rd6 {[%clk
0:00:05.7]} 32. Rf7+ {[%clk 0:01:22.8]} 32... Kg6 {[%clk 0:00:06.3]} 33. Rxb7
{[%clk 0:01:22.6]} 33... Rxe6 {[%clk 0:00:07]} 34. Nxd5 {[%clk 0:01:23.2]} 34...
Nc5 {[%clk 0:00:05.6]} 35. Rxb6 {[%clk 0:01:23.4]} 1-0

[Event "Late-Titled-Tuesday-Blitz-May-07-2024"]
[Site "Chess.com"]
[Date "2024.05.07"]
[Round "4"]
[White "AniJak"]
[Black "Perecke"]
[Result "0-1"]
[WhiteElo "2371"]
[BlackElo "2543"]
[TimeControl "180+1"]
[EndTime "14:37:50 PDT"]
[Termination "Perecke won by resignation"]

1. e4 {[%clk 0:03:00.9]} 1... c5 {[%clk 0:02:58.3]} 2. Nc3 {[%clk 0:03:00.3]}
2... Nc6 {[%clk 0:02:58]} 3. g3 {[%clk 0:03:00.5]} 3... g6 {[%clk 0:02:56.9]} 4.
Bg2 {[%clk 0:03:00.8]} 4... Bg7 {[%clk 0:02:57.3]} 5. d3 {[%clk 0:03:01.1]} 5...
e6 {[%clk 0:02:57.4]} 6. Be3 {[%clk 0:03:00.8]} 6... d6 {[%clk 0:02:56.2]} 7.
Qd2 {[%clk 0:03:01]} 7... Nge7 {[%clk 0:02:56.5]} 8. Bh6 {[%clk 0:03:00.3]} 8...
O-O {[%clk 0:02:57]} 9. h4 {[%clk 0:02:59.5]} 9... Nd4 {[%clk 0:02:54.5]} 10.
Bxg7 {[%clk 0:02:57.7]} 10... Kxg7 {[%clk 0:02:55.4]} 11. h5 {[%clk 0:02:58.1]}
11... Rh8 {[%clk 0:02:52.4]} 12. h6+ {[%clk 0:02:55.1]} 12... Kf8 {[%clk
0:02:48.2]} 13. e5 {[%clk 0:02:35]} 13... dxe5 {[%clk 0:02:39.8]} 14. Ne4 {[%clk
0:02:34.9]} 14... Nef5 {[%clk 0:02:30.1]} 15. c3 {[%clk 0:02:29.7]} 15... Nc6
{[%clk 0:02:24.1]} 16. Nxc5 {[%clk 0:02:29.1]} 16... Qe7 {[%clk 0:02:18.1]} 17.
Ne4 {[%clk 0:02:15.5]} 17... Bd7 {[%clk 0:02:16.4]} 18. Ne2 {[%clk 0:02:14.1]}
18... Rd8 {[%clk 0:02:14.9]} 19. O-O {[%clk 0:02:08.8]} 19... f6 {[%clk
0:02:12.6]} 20. Rad1 {[%clk 0:02:07.3]} 20... Be8 {[%clk 0:02:11]} 21. Qc2
{[%clk 0:02:01.9]} 21... g5 {[%clk 0:02:08.9]} 22. b4 {[%clk 0:01:49.8]} 22...
Nxh6 {[%clk 0:02:05.8]} 23. Nc5 {[%clk 0:01:45.9]} 23... b6 {[%clk 0:01:58.2]}
24. Nb3 {[%clk 0:01:45.7]} 24... Nf5 {[%clk 0:01:53.8]} 25. d4 {[%clk
0:01:45.6]} 25... exd4 {[%clk 0:01:51.5]} 26. Nexd4 {[%clk 0:01:45.8]} 26...
Ncxd4 {[%clk 0:01:51.2]} 27. Nxd4 {[%clk 0:01:45.7]} 27... Nxd4 {[%clk
0:01:50.8]} 28. Rxd4 {[%clk 0:01:44.1]} 28... Rxd4 {[%clk 0:01:50.1]} 29. cxd4
{[%clk 0:01:44.6]} 29... Bg6 {[%clk 0:01:48.3]} 30. Qc6 {[%clk 0:01:34.5]} 30...
Kf7 {[%clk 0:01:43.5]} 31. d5 {[%clk 0:01:31.6]} 31... exd5 {[%clk 0:01:38.1]}
32. Bxd5+ {[%clk 0:01:31]} 32... Kg7 {[%clk 0:01:38.1]} 33. Rc1 {[%clk
0:01:22.4]} 33... Rd8 {[%clk 0:01:37.5]} 34. Bb3 {[%clk 0:01:14]} 34... Bf7
{[%clk 0:01:32.2]} 35. Qc7 {[%clk 0:01:11.3]} 35... Rd7 {[%clk 0:01:32.2]} 36.
Qc8 {[%clk 0:01:02.7]} 36... Bxb3 {[%clk 0:01:27.9]} 37. axb3 {[%clk 0:01:03.6]}
37... Qd6 {[%clk 0:01:25.1]} 38. Qe8 {[%clk 0:00:55.8]} 38... Re7 {[%clk
0:01:24.2]} 39. Qa8 {[%clk 0:00:52.6]} 39... Qxb4 {[%clk 0:01:20.2]} 40. Rc8
{[%clk 0:00:47.6]} 40... Qxb3 {[%clk 0:01:16.8]} 41. Rh8 {[%clk 0:00:44.7]}
41... Qf7 {[%clk 0:01:07.7]} 42. Qc8 {[%clk 0:00:37.8]} 42... Re1+ {[%clk
0:01:02.7]} 43. Kh2 {[%clk 0:00:36.4]} 43... Qh5+ {[%clk 0:01:02.1]} 0-1

[Event "Late-Titled-Tuesday-Blitz-May-07-2024"]
[Site "Chess.com"]
[Date "2024.05.07"]
[Round "4"]
[White "Hakiki_satranc"]
[Black "Olkaa"]
[Result "0-1"]
[WhiteElo "2406"]
[BlackElo "2624"]
[TimeControl "180+1"]
[EndTime "14:37:56 PDT"]
[Termination "Olkaa won by checkmate"]

1. e4 {[%clk 0:03:00.9]} 1... c5 {[%clk 0:02:59.3]} 2. Nf3 {[%clk 0:02:59.9]}
2... e6 {[%clk 0:02:59.7]} 3. d4 {[%clk 0:02:59.3]} 3... cxd4 {[%clk 0:03:00.6]}
4. Nxd4 {[%clk 0:02:59.6]} 4... Nf6 {[%clk 0:03:01.2]} 5. Nc3 {[%clk 0:02:58.4]}
5... Qb6 {[%clk 0:03:01.7]} 6. e5 {[%clk 0:02:32.3]} 6... Bc5 {[%clk 0:03:01.1]}
7. Be3 {[%clk 0:01:57.1]} 7... Nd5 {[%clk 0:02:58.7]} 8. Nxd5 {[%clk 0:01:52]}
8... exd5 {[%clk 0:02:59.6]} 9. Nf5 {[%clk 0:01:45.9]} 9... Qxb2 {[%clk
0:02:45.9]} 10. Nxg7+ {[%clk 0:01:27.8]} 10... Kd8 {[%clk 0:02:30]} 11. Bg5+
{[%clk 0:00:20.4]} 11... Kc7 {[%clk 0:02:26.8]} 12. Be2 {[%clk 0:00:17.4]} 12...
Qxe5 {[%clk 0:02:20.5]} 13. Bh6 {[%clk 0:00:14]} 13... Qf6 {[%clk 0:02:12.8]}
14. Qc1 {[%clk 0:00:06.6]} 14... Qxf2+ {[%clk 0:02:07.8]} 15. Kd1 {[%clk
0:00:06.9]} 15... Qd4+ {[%clk 0:01:53.8]} 16. Bd3 {[%clk 0:00:05.4]} 16... d6
{[%clk 0:01:45.2]} 17. h3 {[%clk 0:00:05.7]} 17... Rg8 {[%clk 0:01:41.3]} 18.
Rf1 {[%clk 0:00:05.4]} 18... Rxg7 {[%clk 0:01:34.4]} 19. Bxg7 {[%clk 0:00:06.3]}
19... Qxg7 {[%clk 0:01:34.6]} 20. Rb1 {[%clk 0:00:04.8]} 20... Nc6 {[%clk
0:01:33]} 21. Qd2 {[%clk 0:00:04.4]} 21... Be6 {[%clk 0:01:30]} 22. g4 {[%clk
0:00:04.3]} 22... Qd4 {[%clk 0:01:21.4]} 23. Qf4 {[%clk 0:00:04.3]} 23... Qc3
{[%clk 0:01:11.5]} 24. Bxh7 {[%clk 0:00:03]} 24... Rh8 {[%clk 0:01:07.3]} 25.
Bd3 {[%clk 0:00:02.3]} 25... Rxh3 {[%clk 0:01:07.4]} 26. Rb3 {[%clk 0:00:01.1]}
26... Qa1+ {[%clk 0:01:04.9]} 27. Ke2 {[%clk 0:00:01.5]} 27... Nd4+ {[%clk
0:01:03]} 28. Qxd4 {[%clk 0:00:00.7]} 28... Qxd4 {[%clk 0:01:02.4]} 29. Kd1
{[%clk 0:00:00.4]} 29... Rh2 {[%clk 0:00:59.6]} 30. Kc1 {[%clk 0:00:00.7]} 30...
Qa1+ {[%clk 0:00:59.3]} 31. Rb1 {[%clk 0:00:01.6]} 31... Ba3+ {[%clk 0:00:59.4]}
32. Kd1 {[%clk 0:00:01.2]} 32... Qxb1# {[%clk 0:01:00.3]} 0-1

[Event "Late-Titled-Tuesday-Blitz-May-07-2024"]
[Site "Chess.com"]
[Date "2024.05.07"]
[Round "4"]
[White "NMJeevanK"]
[Black "CarrotsandPizza"]
[Result "0-1"]
[WhiteElo "2755"]
[BlackElo "2591"]
[TimeControl "180+1"]
[EndTime "14:37:57 PDT"]
[Termination "CarrotsandPizza won on time"]

1. e4 {[%clk 0:03:00.9]} 1... c5 {[%clk 0:02:59.4]} 2. Nc3 {[%clk 0:03:01]} 2...
Nc6 {[%clk 0:02:58.7]} 3. Bb5 {[%clk 0:03:01.7]} 3... e6 {[%clk 0:02:58.1]} 4.
Bxc6 {[%clk 0:03:01.6]} 4... bxc6 {[%clk 0:02:59]} 5. d3 {[%clk 0:03:01.8]} 5...
d5 {[%clk 0:02:59.6]} 6. f4 {[%clk 0:03:01.3]} 6... Nf6 {[%clk 0:03:00.1]} 7.
Qe2 {[%clk 0:03:00.3]} 7... Be7 {[%clk 0:03:00.4]} 8. Nf3 {[%clk 0:03:00.3]}
8... O-O {[%clk 0:03:00.6]} 9. O-O {[%clk 0:03:00.2]} 9... Qc7 {[%clk
0:03:00.9]} 10. b3 {[%clk 0:02:59.3]} 10... Rd8 {[%clk 0:03:00.5]} 11. Bd2
{[%clk 0:02:51.5]} 11... Rb8 {[%clk 0:02:57.1]} 12. Rad1 {[%clk 0:02:48.7]}
12... Ba6 {[%clk 0:02:56.9]} 13. Qf2 {[%clk 0:02:41.6]} 13... c4 {[%clk
0:02:55.8]} 14. bxc4 {[%clk 0:02:34.5]} 14... dxe4 {[%clk 0:02:51.4]} 15. Ne5
{[%clk 0:02:29.5]} 15... exd3 {[%clk 0:02:28.3]} 16. cxd3 {[%clk 0:02:30.4]}
16... Rb2 {[%clk 0:02:28.1]} 17. Rb1 {[%clk 0:02:15]} 17... Rc2 {[%clk
0:02:20.3]} 18. Rfc1 {[%clk 0:02:06.1]} 18... Rxc1+ {[%clk 0:02:17.5]} 19. Bxc1
{[%clk 0:02:05.5]} 19... Bd6 {[%clk 0:02:15.7]} 20. d4 {[%clk 0:02:03.3]} 20...
c5 {[%clk 0:02:13.6]} 21. Be3 {[%clk 0:01:17.1]} 21... Bxe5 {[%clk 0:02:12.7]}
22. dxe5 {[%clk 0:01:13.9]} 22... Ng4 {[%clk 0:02:12.5]} 23. Qg3 {[%clk
0:01:14]} 23... Nxe3 {[%clk 0:02:12.8]} 24. Qxe3 {[%clk 0:01:14.9]} 24... Bxc4
{[%clk 0:02:12.8]} 25. Ne4 {[%clk 0:01:12.4]} 25... Bxa2 {[%clk 0:01:59.2]} 26.
Ra1 {[%clk 0:01:12.1]} 26... Bd5 {[%clk 0:01:58.4]} 27. Nxc5 {[%clk 0:01:00.8]}
27... Qb6 {[%clk 0:01:54.7]} 28. Qa3 {[%clk 0:00:33.1]} 28... Rc8 {[%clk
0:01:50.2]} 29. Rc1 {[%clk 0:00:33.3]} 29... h6 {[%clk 0:01:47.9]} 30. h3 {[%clk
0:00:29.3]} 30... Rc6 {[%clk 0:01:43.1]} 31. Kh2 {[%clk 0:00:29.1]} 31... h5
{[%clk 0:01:39.9]} 32. Nd7 {[%clk 0:00:28.2]} 32... Qc7 {[%clk 0:01:35.3]} 33.
Qf8+ {[%clk 0:00:26.5]} 33... Kh7 {[%clk 0:01:35.3]} 34. Rxc6 {[%clk 0:00:23.9]}
34... Bxc6 {[%clk 0:01:34.7]} 35. Nc5 {[%clk 0:00:14.8]} 35... a5 {[%clk
0:01:31]} 36. Kg3 {[%clk 0:00:05.3]} 36... a4 {[%clk 0:01:30.1]} 37. Nd3 {[%clk
0:00:05.3]} 37... Qb7 {[%clk 0:01:24.8]} 38. Nf2 {[%clk 0:00:03.8]} 38... Bxg2
{[%clk 0:01:23.6]} 39. Kh4 {[%clk 0:00:04]} 39... Qf3 {[%clk 0:01:21.5]} 40.
Qxf7 {[%clk 0:00:03.5]} 40... Qxf2+ {[%clk 0:01:21.9]} 41. Kxh5 {[%clk
0:00:03.1]} 41... Bf3+ {[%clk 0:01:19.7]} 0-1

[Event "Late-Titled-Tuesday-Blitz-May-07-2024"]
[Site "Chess.com"]
[Date "2024.05.07"]
[Round "4"]
[White "trriinu"]
[Black "Redzishchess"]
[Result "0-1"]
[WhiteElo "2253"]
[BlackElo "2505"]
[TimeControl "180+1"]
[EndTime "14:37:57 PDT"]
[Termination "Redzishchess won by resignation"]

1. e4 {[%clk 0:03:00.2]} 1... c5 {[%clk 0:02:59.4]} 2. Nf3 {[%clk 0:03:00.1]}
2... d6 {[%clk 0:03:00]} 3. Bb5+ {[%clk 0:03:00.5]} 3... Bd7 {[%clk 0:02:58.9]}
4. Bxd7+ {[%clk 0:03:01]} 4... Qxd7 {[%clk 0:02:59.8]} 5. O-O {[%clk 0:03:01.6]}
5... Nf6 {[%clk 0:02:58.9]} 6. Qe2 {[%clk 0:03:01.9]} 6... Nc6 {[%clk
0:02:52.4]} 7. c3 {[%clk 0:03:02.1]} 7... e6 {[%clk 0:02:53]} 8. Rd1 {[%clk
0:03:01.9]} 8... Be7 {[%clk 0:02:53.1]} 9. d4 {[%clk 0:03:02.4]} 9... cxd4
{[%clk 0:02:47.3]} 10. cxd4 {[%clk 0:03:03.3]} 10... d5 {[%clk 0:02:47.9]} 11.
e5 {[%clk 0:03:03.4]} 11... Ne4 {[%clk 0:02:48.6]} 12. Ne1 {[%clk 0:03:03.8]}
12... f5 {[%clk 0:02:11.1]} 13. Qh5+ {[%clk 0:02:20.7]} 13... g6 {[%clk
0:02:09.9]} 14. Qh6 {[%clk 0:02:21]} 14... Bf8 {[%clk 0:01:52.4]} 15. Qh4 {[%clk
0:01:59.1]} 15... Qe7 {[%clk 0:01:11.7]} 16. Qh3 {[%clk 0:00:24.4]} 16... Rc8
{[%clk 0:00:49.5]} 17. f3 {[%clk 0:00:20.8]} 17... Nxd4 {[%clk 0:00:30.9]} 18.
Be3 {[%clk 0:00:10.4]} 18... Ng5 {[%clk 0:00:29.7]} 19. Qg3 {[%clk 0:00:08.9]}
19... Ne2+ {[%clk 0:00:29.2]} 0-1

[Event "Late-Titled-Tuesday-Blitz-May-07-2024"]
[Site "Chess.com"]
[Date "2024.05.07"]
[Round "4"]
[White "K_A_S_T_O_R"]
[Black "Mikayel99"]
[Result "1-0"]
[WhiteElo "2830"]
[BlackElo "2592"]
[TimeControl "180+1"]
[EndTime "14:38:01 PDT"]
[Termination "K_A_S_T_O_R won by resignation"]

1. e4 {[%clk 0:03:00.9]} 1... c5 {[%clk 0:02:55.2]} 2. Nf3 {[%clk 0:02:59.9]}
2... b6 {[%clk 0:02:55.5]} 3. d4 {[%clk 0:02:59.3]} 3... cxd4 {[%clk 0:02:56.4]}
4. Nxd4 {[%clk 0:02:59.5]} 4... Bb7 {[%clk 0:02:57.2]} 5. Nc3 {[%clk 0:02:57.6]}
5... a6 {[%clk 0:02:57.6]} 6. Bf4 {[%clk 0:02:57.3]} 6... d6 {[%clk 0:02:53]} 7.
Bg3 {[%clk 0:02:57.2]} 7... g6 {[%clk 0:02:53]} 8. Qd2 {[%clk 0:02:56.4]} 8...
Bg7 {[%clk 0:02:53.4]} 9. Bc4 {[%clk 0:02:53.4]} 9... Nf6 {[%clk 0:02:50.9]} 10.
f3 {[%clk 0:02:51.8]} 10... b5 {[%clk 0:02:48.6]} 11. Bb3 {[%clk 0:02:51]} 11...
Nbd7 {[%clk 0:02:45.7]} 12. a3 {[%clk 0:02:48.3]} 12... h5 {[%clk 0:02:38.4]}
13. Bf2 {[%clk 0:02:44.6]} 13... Rc8 {[%clk 0:02:32.8]} 14. O-O-O {[%clk
0:02:38.3]} 14... Ne5 {[%clk 0:02:23.4]} 15. Be3 {[%clk 0:02:35.3]} 15... Nc4
{[%clk 0:02:13.9]} 16. Bxc4 {[%clk 0:02:34.7]} 16... Rxc4 {[%clk 0:02:14.8]} 17.
Kb1 {[%clk 0:02:33.9]} 17... O-O {[%clk 0:02:10.8]} 18. Nb3 {[%clk 0:02:22]}
18... Qc7 {[%clk 0:02:01.9]} 19. Na2 {[%clk 0:02:18]} 19... d5 {[%clk
0:01:49.7]} 20. Na5 {[%clk 0:02:12.4]} 20... dxe4 {[%clk 0:01:29.9]} 21. Nxc4
{[%clk 0:02:11.6]} 21... Qxc4 {[%clk 0:01:30.5]} 22. f4 {[%clk 0:02:03.4]} 22...
Ng4 {[%clk 0:01:20.9]} 23. Rhe1 {[%clk 0:01:48.6]} 23... Rc8 {[%clk 0:01:09.6]}
24. g3 {[%clk 0:01:42.8]} 24... Bd5 {[%clk 0:00:52.9]} 25. Nb4 {[%clk
0:01:39.6]} 25... Be6 {[%clk 0:00:53.5]} 26. Bb6 {[%clk 0:01:31.2]} 26... e3
{[%clk 0:00:45.8]} 27. Qd3 {[%clk 0:01:27.3]} 27... a5 {[%clk 0:00:26.7]} 28.
Bxa5 {[%clk 0:01:24.2]} 28... Nxh2 {[%clk 0:00:22.4]} 29. Qxc4 {[%clk
0:01:20.5]} 29... bxc4 {[%clk 0:00:16]} 30. Rxe3 {[%clk 0:01:20.7]} 30... Ng4
{[%clk 0:00:16.6]} 31. Re2 {[%clk 0:01:18.6]} 31... c3 {[%clk 0:00:14.7]} 32.
Nd5 {[%clk 0:01:11.4]} 32... Bxd5 {[%clk 0:00:07.6]} 33. Rxd5 {[%clk 0:01:11.6]}
33... e6 {[%clk 0:00:04.9]} 34. Rd8+ {[%clk 0:01:11.3]} 34... Rxd8 {[%clk
0:00:05.6]} 35. Bxd8 {[%clk 0:01:11.6]} 35... cxb2 {[%clk 0:00:06.3]} 36. a4
{[%clk 0:01:10.2]} 36... Bd4 {[%clk 0:00:05.2]} 37. a5 {[%clk 0:01:10.2]} 37...
Kf8 {[%clk 0:00:05.4]} 38. Bb6 {[%clk 0:01:10.1]} 1-0

[Event "Late-Titled-Tuesday-Blitz-May-07-2024"]
[Site "Chess.com"]
[Date "2024.05.07"]
[Round "4"]
[White "Hilary46"]
[Black "Sandstad"]
[Result "1-0"]
[WhiteElo "2723"]
[BlackElo "2435"]
[TimeControl "180+1"]
[EndTime "14:38:01 PDT"]
[Termination "Hilary46 won by checkmate"]

1. e4 {[%clk 0:03:00.9]} 1... c5 {[%clk 0:02:55.5]} 2. Nf3 {[%clk 0:03:00.8]}
2... Nc6 {[%clk 0:02:55.1]} 3. d4 {[%clk 0:03:01.1]} 3... cxd4 {[%clk
0:02:55.7]} 4. Nxd4 {[%clk 0:03:02]} 4... Nf6 {[%clk 0:02:55.7]} 5. Nc3 {[%clk
0:03:02.6]} 5... g6 {[%clk 0:02:54]} 6. Be3 {[%clk 0:03:01.4]} 6... Bg7 {[%clk
0:02:53.6]} 7. Nxc6 {[%clk 0:03:01.3]} 7... bxc6 {[%clk 0:02:51.9]} 8. e5 {[%clk
0:03:01.7]} 8... Nd5 {[%clk 0:02:49.5]} 9. Nxd5 {[%clk 0:03:02.1]} 9... cxd5
{[%clk 0:02:50.4]} 10. Qxd5 {[%clk 0:03:02.3]} 10... Rb8 {[%clk 0:02:51.1]} 11.
O-O-O {[%clk 0:03:02.8]} 11... O-O {[%clk 0:02:46.7]} 12. Bxa7 {[%clk
0:03:03.1]} 12... Rb4 {[%clk 0:02:24.4]} 13. Qc5 {[%clk 0:02:43.3]} 13... Ra4
{[%clk 0:02:11.2]} 14. Bb6 {[%clk 0:02:39.2]} 14... Qe8 {[%clk 0:02:05.1]} 15.
a3 {[%clk 0:02:07.7]} 15... d6 {[%clk 0:01:48.3]} 16. exd6 {[%clk 0:02:06.9]}
16... exd6 {[%clk 0:01:47.9]} 17. Qxd6 {[%clk 0:02:04.3]} 17... Bf5 {[%clk
0:01:21.6]} 18. Bd3 {[%clk 0:02:01.1]} 18... Be6 {[%clk 0:00:44.1]} 19. Rhe1
{[%clk 0:01:56]} 19... Qa8 {[%clk 0:00:42.8]} 20. Rxe6 {[%clk 0:01:50.6]} 20...
fxe6 {[%clk 0:00:40.5]} 21. Qxe6+ {[%clk 0:01:51.5]} 21... Kh8 {[%clk
0:00:40.3]} 22. Qb3 {[%clk 0:01:05.1]} 22... Rb8 {[%clk 0:00:28.3]} 23. Bb5
{[%clk 0:01:04.5]} 23... Rh4 {[%clk 0:00:20.1]} 24. Bc7 {[%clk 0:00:59.4]} 24...
Rc8 {[%clk 0:00:18.9]} 25. Bg3 {[%clk 0:00:53.2]} 25... Rd4 {[%clk 0:00:16.7]}
26. Rxd4 {[%clk 0:00:51.7]} 26... Bxd4 {[%clk 0:00:17.6]} 27. Qe6 {[%clk
0:00:43.9]} 27... Rd8 {[%clk 0:00:12.4]} 28. Be5+ {[%clk 0:00:42.8]} 28... Bxe5
{[%clk 0:00:12.3]} 29. Qxe5+ {[%clk 0:00:43.7]} 29... Kg8 {[%clk 0:00:12.6]} 30.
Bc4+ {[%clk 0:00:44.2]} 30... Kf8 {[%clk 0:00:12.7]} 31. Qf6+ {[%clk 0:00:44.2]}
31... Ke8 {[%clk 0:00:12.9]} 32. Qf7# {[%clk 0:00:44.9]} 1-0

[Event "Late-Titled-Tuesday-Blitz-May-07-2024"]
[Site "Chess.com"]
[Date "2024.05.07"]
[Round "4"]
[White "cristianserban1"]
[Black "pouya21"]
[Result "0-1"]
[WhiteElo "2634"]
[BlackElo "2834"]
[TimeControl "180+1"]
[EndTime "14:38:04 PDT"]
[Termination "pouya21 won by resignation"]

1. d4 {[%clk 0:02:56.9]} 1... Nf6 {[%clk 0:02:59.2]} 2. c4 {[%clk 0:02:57.1]}
2... e6 {[%clk 0:02:58.6]} 3. Nf3 {[%clk 0:02:57.5]} 3... c5 {[%clk 0:02:58.9]}
4. d5 {[%clk 0:02:57.6]} 4... d6 {[%clk 0:02:59.3]} 5. Nc3 {[%clk 0:02:57.3]}
5... exd5 {[%clk 0:02:59.7]} 6. cxd5 {[%clk 0:02:57.5]} 6... g6 {[%clk
0:03:00.4]} 7. Nd2 {[%clk 0:02:57.8]} 7... Bg7 {[%clk 0:03:00.2]} 8. e4 {[%clk
0:02:56.1]} 8... O-O {[%clk 0:03:00.8]} 9. Be2 {[%clk 0:02:56.6]} 9... Re8
{[%clk 0:02:51]} 10. O-O {[%clk 0:02:56.2]} 10... Na6 {[%clk 0:02:48.8]} 11. Kh1
{[%clk 0:02:48.5]} 11... Nc7 {[%clk 0:02:47]} 12. a4 {[%clk 0:02:45.4]} 12... b6
{[%clk 0:02:45.6]} 13. f3 {[%clk 0:02:36.5]} 13... Rb8 {[%clk 0:02:45.1]} 14.
Re1 {[%clk 0:02:26]} 14... Nh5 {[%clk 0:02:34.5]} 15. Nf1 {[%clk 0:02:02.6]}
15... a6 {[%clk 0:02:17.9]} 16. g4 {[%clk 0:01:59.2]} 16... Nf6 {[%clk
0:02:17.6]} 17. Bf4 {[%clk 0:01:51.3]} 17... h5 {[%clk 0:02:13.9]} 18. h3 {[%clk
0:01:51.3]} 18... hxg4 {[%clk 0:02:05.3]} 19. hxg4 {[%clk 0:01:52.2]} 19... b5
{[%clk 0:01:55.5]} 20. axb5 {[%clk 0:01:41.6]} 20... axb5 {[%clk 0:01:56.4]} 21.
Kg2 {[%clk 0:01:40.4]} 21... b4 {[%clk 0:01:49.5]} 22. Nb1 {[%clk 0:01:40.6]}
22... Nd7 {[%clk 0:01:17.9]} 23. Bxd6 {[%clk 0:01:28.1]} 23... Bxb2 {[%clk
0:01:18.5]} 24. Ra7 {[%clk 0:01:28.6]} 24... Be5 {[%clk 0:01:19]} 25. Bxe5
{[%clk 0:01:09]} 25... Nxe5 {[%clk 0:01:19.9]} 26. d6 {[%clk 0:01:03.4]} 26...
Ne6 {[%clk 0:01:17.7]} 27. Kg3 {[%clk 0:00:22.4]} 27... Rb6 {[%clk 0:01:14]} 28.
d7 {[%clk 0:00:18.1]} 28... Bxd7 {[%clk 0:01:13.4]} 29. f4 {[%clk 0:00:17.7]}
29... Nxf4 {[%clk 0:01:10.1]} 30. Kxf4 {[%clk 0:00:18.2]} 30... Qh4 {[%clk
0:01:08.3]} 31. Rxd7 {[%clk 0:00:13.8]} 31... Qf2+ {[%clk 0:01:03.2]} 32. Bf3
{[%clk 0:00:07.1]} 32... Rf6+ {[%clk 0:01:02]} 33. Kg5 {[%clk 0:00:06.6]} 33...
Nxf3+ {[%clk 0:00:55.2]} 34. Kxf6 {[%clk 0:00:06.9]} 34... Qh4+ {[%clk
0:00:55.7]} 0-1

[Event "Late-Titled-Tuesday-Blitz-May-07-2024"]
[Site "Chess.com"]
[Date "2024.05.07"]
[Round "4"]
[White "carokannlover213"]
[Black "Itay121"]
[Result "0-1"]
[WhiteElo "2712"]
[BlackElo "2555"]
[TimeControl "180+1"]
[EndTime "14:38:05 PDT"]
[Termination "Itay121 won on time"]

1. c4 {[%clk 0:03:00.9]} 1... Nf6 {[%clk 0:02:57.9]} 2. Nc3 {[%clk 0:03:00.2]}
2... e5 {[%clk 0:02:57.4]} 3. Nf3 {[%clk 0:02:58.6]} 3... Nc6 {[%clk 0:02:57.4]}
4. e4 {[%clk 0:02:58.9]} 4... Bc5 {[%clk 0:02:56.5]} 5. Nxe5 {[%clk 0:02:59.1]}
5... O-O {[%clk 0:02:52.9]} 6. Nxc6 {[%clk 0:02:53.2]} 6... dxc6 {[%clk
0:02:53.8]} 7. Be2 {[%clk 0:02:47.9]} 7... Qd4 {[%clk 0:02:41.9]} 8. O-O {[%clk
0:02:47.2]} 8... Nxe4 {[%clk 0:02:42.3]} 9. Nxe4 {[%clk 0:02:46.6]} 9... Qxe4
{[%clk 0:02:43.2]} 10. d3 {[%clk 0:02:14.3]} 10... Qg6 {[%clk 0:02:36.4]} 11. d4
{[%clk 0:02:06.6]} 11... Bh3 {[%clk 0:02:27.7]} 12. Bf3 {[%clk 0:01:48.6]} 12...
Rad8 {[%clk 0:02:27.2]} 13. Be3 {[%clk 0:01:49.2]} 13... Bxd4 {[%clk 0:02:26.1]}
14. Bxd4 {[%clk 0:01:50.1]} 14... c5 {[%clk 0:02:26.5]} 15. Bxc5 {[%clk
0:01:19.7]} 15... Rxd1 {[%clk 0:02:18.1]} 16. Rfxd1 {[%clk 0:01:20.6]} 16... Re8
{[%clk 0:02:10.9]} 17. Bxb7 {[%clk 0:01:14.5]} 17... c6 {[%clk 0:02:07.8]} 18.
g3 {[%clk 0:00:46.7]} 18... Qe4 {[%clk 0:02:06.5]} 19. f3 {[%clk 0:00:46.2]}
19... Qxf3 {[%clk 0:02:02.6]} 20. Rd2 {[%clk 0:00:46]} 20... h5 {[%clk
0:01:53.1]} 21. Rf2 {[%clk 0:00:43.9]} 21... Qd3 {[%clk 0:01:44.3]} 22. Bxc6
{[%clk 0:00:38.5]} 22... Re2 {[%clk 0:01:39.2]} 23. Bd5 {[%clk 0:00:37.2]} 23...
Rxf2 {[%clk 0:01:33.9]} 24. Bxf2 {[%clk 0:00:38.1]} 24... Qc2 {[%clk 0:01:28.7]}
25. b4 {[%clk 0:00:32.2]} 25... Be6 {[%clk 0:01:18.6]} 26. Bxa7 {[%clk
0:00:13.8]} 26... Qb2 {[%clk 0:01:11.7]} 27. Rd1 {[%clk 0:00:11.4]} 27... Qxa2
{[%clk 0:01:09.3]} 28. Bf2 {[%clk 0:00:06.9]} 28... Qb3 {[%clk 0:01:03.5]} 29.
Rd4 {[%clk 0:00:02.9]} 29... Bh3 {[%clk 0:00:58.4]} 30. Be1 {[%clk 0:00:01.2]}
30... Qe3+ {[%clk 0:00:55.5]} 31. Bf2 {[%clk 0:00:01.6]} 31... Qc1+ {[%clk
0:00:56]} 32. Rd1 {[%clk 0:00:01.9]} 32... Qxd1+ {[%clk 0:00:56.4]} 0-1